bitfinex/quotes_ETHUSD_20260305
["timestamp","ask_amount","ask_price","bid_price","bid_amount"]
[1772691396059,0.49793399,2115.2,2114.3,0.0011]
[1772691396649,0.49793399,2115.0,2114.3,0.0011]
[1772691396848,0.49793399,2114.8,2114.3,0.0011]
[1772691397238,0.49793399,2114.8,2114.1,0.0011]
[1772691398973,0.49793399,2114.6,2114.1,0.0011]
[1772691401680,1.1823126,2114.5,2114.1,0.0011]
[1772691401869,1.68019238,2114.6,2114.1,0.0011]
[1772691402462,0.49793399,2114.6,2114.1,0.0011]
[1772691402778,1.6801917,2114.6,2114.1,0.0011]
[1772691404460,0.49793399,2114.6,2114.1,0.0011]
[1772691404667,1.68020352,2114.6,2114.1,0.0011]
[1772691405968,1.68020022,2114.6,2114.1,0.0011]
[1772691406479,0.49793399,2114.6,2114.1,0.0011]
[1772691406653,0.49793399,2114.8,2114.3,0.0011]
[1772691407964,1.733,2114.9,2114.3,0.22711519]
[1772691408173,2.91509383,2114.9,2114.3,0.22711519]
[1772691409102,2.91509383,2114.9,2114.4,1.18236852]
[1772691409249,1.733,2114.9,2114.4,1.18236852]
[1772691409592,1.733,2114.9,2114.5,0.22601519]
[1772691409749,0.47901348,2114.8,2114.3,0.0011]
[1772691411570,0.47901348,2114.6,2114.3,0.0011]
[1772691413799,1.66132608,2114.5,2114.3,0.0011]
[1772691413999,0.47901348,2114.4,2114.3,0.0011]
[1772691415971,1.661382,2114.4,2114.3,0.0011]
[1772691416702,0.47901348,2114.4,2114.3,0.0011]
[1772691417372,1.18232172,2114.5,2114.3,0.0011]
[1772691417705,1.66127376,2114.6,2114.3,0.0011]
[1772691418220,0.47901348,2114.6,2114.3,0.0011]
[1772691418505,1.66127544,2114.6,2114.3,0.0011]
[1772691418868,0.47901348,2114.6,2114.3,0.0011]
[1772691419066,1.66127057,2114.6,2114.3,0.0011]
[1772691419471,1.66127057,2114.6,2114.5,0.0011]
[1772691420209,0.47901348,2114.6,2114.5,0.0011]
[1772691420408,1.66127017,2114.6,2114.5,0.0011]
[1772691420707,0.47901348,2114.5,2114.3,0.0011]
[1772691422612,1.661382,2114.4,2114.3,0.0011]
[1772691423918,0.001,2114.7,2114.3,0.0011]
[1772691424172,1.733,2114.6,2114.3,0.22821519]
[1772691424881,2.91527032,2114.6,2114.3,0.22821519]
[1772691425878,3.3942838,2114.6,2114.3,0.0011]
[1772691426082,0.47901348,2114.5,2114.1,0.0011]
[1772691427093,1.18236852,2114.4,2114.1,0.0011]
[1772691427298,0.47901348,2114.3,2114.1,0.0011]
[1772691429499,1.18236852,2114.4,2114.1,0.0011]
[1772691430802,1.64949187,2114.4,2114.1,0.0011]
[1772691431857,0.46712335,2114.3,2113.9,0.0011]
[1772691432177,0.46712335,2114.1,2113.9,0.0011]
[1772691433534,1.64971559,2114.0,2113.9,0.0011]
[1772691434466,1.18257493,2114.1,2113.9,0.0011]
[1772691434650,0.46712335,2114.1,2113.9,0.0011]
[1772691436374,1.739,2114.2,2113.9,0.22931519]
[1772691436862,2.92148204,2114.2,2113.9,0.22931519]
[1772691437063,2.92148204,2114.2,2113.9,0.0011]
[1772691437265,1.739,2114.2,2113.9,0.0011]
[1772691437754,0.46712335,2114.1,2113.9,0.0011]
[1772691437959,2.92151607,2114.2,2113.9,0.0011]
[1772691438391,0.001,2114.4,2113.9,0.22931519]
[1772691439974,1.745,2114.7,2114.0,0.22721519]
[1772691440175,2.92720967,2114.7,2114.2,0.22721519]
[1772691440685,1.745,2114.7,2114.2,0.22721519]
[1772691440849,2.92720192,2114.7,2114.2,0.22721519]
[1772691441665,3.39886961,2114.7,2114.2,0.22721519]
[1772691441864,2.21666769,2114.7,2114.2,0.22721519]
[1772691442068,3.39886926,2114.7,2114.3,1.18242444]
[1772691442374,3.39886926,2114.7,2114.2,4.95707406]
[1772691442375,3.39886926,2114.7,2114.2,1.40965007]
[1772691444255,0.001,2114.7,2114.3,0.22721519]
[1772691444462,1.18320521,2114.7,2114.3,0.22721519]
[1772691444659,1.6548729,2114.7,2114.3,0.22721519]
[1772691444967,0.001,2114.5,2114.3,0.22721519]
[1772691445289,0.47266769,2114.5,2114.1,0.0011]
[1772691446083,0.47266769,2114.5,2113.9,0.0011]
[1772691446258,0.47166769,2114.3,2113.9,0.0011]
[1772691446582,2.22066769,2114.3,2113.9,0.0011]
[1772691447279,1.749,2114.3,2113.9,0.0011]
[1772691448279,1.18248037,2114.2,2113.9,0.0011]
[1772691448683,1.18334796,2114.5,2113.9,0.22941519]
[1772691450358,1.64121043,2114.5,2113.9,0.22941519]
[1772691450560,0.45786247,2114.4,2113.9,0.22941519]
[1772691450787,0.45786247,2114.4,2113.9,0.0011]
[1772691452569,0.45786247,2114.2,2113.9,0.0011]
[1772691453268,0.45786247,2114.0,2113.6,0.0011]
[1772691454261,0.45786247,2114.0,2113.4,0.0011]
[1772691454691,0.45786247,2113.8,2113.4,0.0011]
[1772691455193,0.45786247,2113.8,2112.9,0.0011]
[1772691456669,1.18276008,2113.7,2112.9,0.0011]
[1772691456872,0.49999999,2113.5,2112.9,0.0011]
[1772691457585,0.49999999,2113.5,2113.2,0.0011]
[1772691460270,1.18292798,2113.4,2113.2,0.0011]
[1772691461191,1.68290844,2113.5,2113.2,0.0011]
[1772691463591,1.18290845,2113.5,2113.2,0.0011]
[1772691463777,0.49999999,2113.4,2113.2,0.0011]
[1772691466178,0.49999999,2113.4,2112.6,0.0011]
[1772691466179,0.49999999,2113.2,2112.6,0.0011]
[1772691466400,0.49944999,2113.1,2112.6,0.0011]
[1772691466907,0.49944999,2113.1,2112.2,0.0011]
[1772691468595,0.49944999,2112.9,2112.2,0.0011]
[1772691470601,1.18326391,2112.8,2112.4,0.00220001]
[1772691470794,1.68267112,2112.9,2112.6,0.440873]
[1772691470983,0.49944999,2112.9,2112.6,0.440873]
[1772691471190,1.68266018,2112.9,2112.6,0.440873]
[1772691471809,1.18321019,2112.9,2112.6,0.440873]
[1772691471981,1.18321019,2112.9,2112.6,0.44197301]
[1772691472283,1.18319295,2113.0,2112.6,0.44197301]
[1772691472482,2.15322265,2113.1,2112.7,0.00110001]
[1772691472699,0.49944999,2113.0,2112.6,0.440873]
[1772691473206,2.65267264,2113.1,2112.6,0.44197301]
[1772691473508,0.49944999,2113.0,2112.6,0.440873]
[1772691474711,1.18318202,2113.0,2112.6,0.44197301]
[1772691474922,1.18318202,2113.0,2112.6,1.62534827]
[1772691475091,1.18318202,2113.0,2112.6,0.44197301]
[1772691477316,1.18318202,2113.0,2112.7,0.00110001]
[1772691477687,1.68263201,2113.0,2112.6,0.440873]
[1772691481624,0.9701265,2113.1,2112.6,1.62641978]
[1772691481807,0.89420123,2113.1,2112.6,1.62531977]
[1772691482531,0.89420123,2113.1,2112.6,0.441973]
[1772691482532,0.5,2113.0,2112.6,0.441973]
[1772691482898,1.18320791,2112.9,2112.6,0.441973]
[1772691484206,1.68320791,2112.9,2112.6,0.441973]
[1772691485209,0.5,2112.9,2112.6,0.441973]
[1772691485408,1.39420123,2113.1,2112.6,1.62533575]
[1772691486317,1.39420123,2113.1,2112.8,0.440873]
[1772691486696,0.89420123,2113.1,2112.8,0.440873]
[1772691487020,1.76,2113.4,2112.9,1.18320791]
[1772691487626,0.5,2113.7,2112.9,1.18320791]
[1772691487833,0.24507099,2113.6,2112.9,1.18320791]
[1772691488282,1.68276965,2113.7,2112.9,1.18320791]
[1772691489028,0.24507099,2113.6,2112.9,1.18320791]
[1772691489336,0.24507099,2113.7,2112.9,1.18320791]
[1772691489741,0.24607099,2113.8,2112.9,1.18320791]
[1772691490381,0.001,2113.8,2112.9,1.18320791]
[1772691493171,0.001,2113.8,2113.0,0.065536]
[1772691493377,0.001,2113.8,2113.1,1.337]
[1772691494056,0.001,2113.6,2113.1,1.337]
[1772691494237,0.001,2113.8,2113.1,1.337]
[1772691495394,0.001,2113.8,2113.2,1.18303993]
[1772691495741,0.24607099,2113.8,2113.2,1.18303993]
[1772691496039,0.5,2114.2,2113.3,1.337]
[1772691496742,0.5,2114.2,2113.2,1.18303993]
[1772691496941,0.5,2114.2,2113.3,1.337]
[1772691497366,1.18248407,2114.2,2113.4,1.18292798]
[1772691497668,0.5,2114.1,2113.4,1.18292798]
[1772691498736,0.5,2114.4,2113.4,1.18292798]
[1772691499062,1.18334686,2114.5,2113.4,1.18292798]
[1772691499063,0.001,2114.5,2113.4,1.18292798]
[1772691500777,0.001,2114.5,2113.5,0.065536]
[1772691501464,0.001,2114.5,2113.7,0.065536]
[1772691501668,0.001,2114.5,2113.9,0.065536]
[1772691501869,0.001,2114.5,2114.1,2.38229779]
[1772691502073,0.001,2114.7,2114.1,2.62853535]
[1772691502289,0.001,2114.7,2114.2,0.31168615]
[1772691502438,0.001,2114.7,2114.3,1.337]
[1772691503343,0.001,2114.7,2114.4,1.18236852]
[1772691504544,0.001,2114.7,2114.5,1.338]
[1772691504869,0.5,2115.2,2114.5,1.338]
[1772691506148,0.5,2115.2,2114.6,1.18225669]
[1772691507272,0.5,2115.2,2114.6,2.52025669]
[1772691507665,1.18168593,2115.7,2114.6,2.52025669]
[1772691507666,0.5,2115.5,2114.6,2.52025669]
[1772691507847,0.5,2115.7,2114.6,2.52025669]
[1772691508051,0.5,2115.7,2114.6,1.18225669]
[1772691508252,0.5,2115.5,2114.6,1.338]
[1772691508481,0.5,2115.5,2114.4,4.72906002]
[1772691508774,0.5,2115.5,2114.5,1.338]
[1772691510245,4.72679145,2115.9,2114.5,1.338]
[1772691510246,0.49083364,2116.3,2115.2,0.04516614]
[1772691511387,0.49083364,2116.3,2115.1,2.52097721]
[1772691511688,0.49083364,2116.3,2115.1,2.56614335]
[1772691512659,0.49083364,2116.1,2115.2,0.04516614]
[1772691513685,0.49083364,2116.1,2115.3,0.22681803]
[1772691513885,0.49083364,2116.1,2115.4,0.18164331]
[1772691514085,0.49083364,2116.2,2115.4,0.4790467]
[1772691514376,4.7248786,2116.5,2115.4,0.4790467]
[1772691514377,1.18129419,2116.4,2115.4,0.4790467]
[1772691514679,0.49083364,2116.3,2115.5,1.66080042]
[1772691514853,0.49083364,2116.3,2115.6,0.4790467]
[1772691515053,0.49083364,2116.3,2115.7,0.16384183]
[1772691515648,0.49083364,2116.3,2115.7,0.64288853]
[1772691515867,0.49083364,2116.3,2115.8,0.16383408]
[1772691516244,1.733,2117.1,2115.8,0.64288078]
[1772691516442,0.49083364,2117.0,2115.9,0.16382634]
[1772691516874,0.49083364,2116.8,2116.0,1.66052118]
[1772691517074,0.49083364,2116.8,2116.1,0.16381086]
[1772691517443,0.49083364,2116.8,2116.0,1.66052118]
[1772691517650,0.49083364,2116.8,2116.1,0.4790467]
[1772691518351,0.49083364,2116.8,2116.0,1.18147448]
[1772691518595,0.49183364,2116.1,2115.6,1.18279251]
[1772691518888,0.49183364,2116.1,2115.6,0.0011]
[1772691519089,4.72444967,2116.7,2115.7,0.4790467]
[1772691519090,0.49083364,2116.6,2115.7,0.4790467]
[1772691519251,0.49083364,2116.8,2115.7,0.4790467]
[1772691519445,1.18074906,2117.3,2115.9,0.4790467]
[1772691519651,0.49083364,2117.2,2115.9,0.4790467]
[1772691520856,0.49083364,2117.1,2116.3,0.4790467]
[1772691521059,0.07350845,2117.1,2116.3,0.4790467]
[1772691521863,1.66417747,2117.2,2116.3,0.4790467]
[1772691522582,0.48333294,2117.1,2116.3,0.4790467]
[1772691522769,0.48333294,2117.1,2116.2,1.18136282]
[1772691523093,0.48333294,2116.9,2116.2,1.18136282]
[1772691523258,0.39061037,2116.9,2116.2,1.18136282]
[1772691523968,0.39061037,2116.9,2116.2,1.66040952]
[1772691525094,1.57163833,2116.8,2116.2,0.4790467]
[1772691525671,0.39061037,2116.7,2116.1,1.18140716]
[1772691526212,0.39061037,2116.7,2116.0,1.18142987]
[1772691526378,0.39061037,2116.7,2115.8,1.1815322]
[1772691526696,1.13149606,2116.8,2115.8,1.1815322]
[1772691526880,1.13149606,2116.8,2115.8,1.6815322]
[1772691527300,4.72368262,2117.0,2115.8,1.6815322]
[1772691527965,4.72411186,2117.1,2115.9,0.5]
[1772691529899,4.72411186,2117.1,2116.0,1.68147448]
[1772691530082,4.72411186,2117.1,2116.1,0.5]
[1772691530458,0.001,2116.9,2116.1,0.5]
[1772691532191,0.001,2116.9,2116.3,0.5]
[1772691534385,0.001,2116.9,2116.5,0.5]
[1772691534892,1.18063754,2117.5,2116.5,0.5]
[1772691536193,1.18047029,2117.8,2116.7,0.5]
[1772691538298,1.18047029,2117.8,2116.9,0.5]
[1772691540494,4.72188119,2117.9,2117.1,0.5]
[1772691541406,4.72188119,2117.9,2116.9,0.5]
[1772691542709,0.001,2117.7,2117.1,0.5]
[1772691542909,2.49784651,2118.3,2117.1,0.4995]
[1772691543208,3.98459366,2118.7,2117.1,0.4995]
[1772691543209,1.18008024,2118.5,2117.1,0.4995]
[1772691544171,0.001,2118.4,2117.1,0.4995]
[1772691544377,1.18008024,2118.5,2117.1,0.4995]
[1772691544600,4.72111256,2118.6,2117.3,0.4995]
[1772691545177,4.72011256,2118.6,2117.3,0.4995]
[1772691545594,2.9140098,2118.7,2117.3,0.4995]
[1772691545885,4.71853347,2119.4,2117.7,0.4995]
[1772691545886,1.17969044,2119.2,2117.7,0.4995]
[1772691546200,1.17969044,2119.2,2117.2,4.58234434]
[1772691546201,1.18069044,2119.2,2118.2,0.4995]
[1772691546403,1.17969044,2119.2,2118.2,0.4995]
[1772691546571,1.17969044,2119.2,2118.4,0.4995]
[1772691546970,7.2176083,2119.3,2118.4,0.4995]
[1772691546971,1.17966922,2119.3,2118.4,0.4995]
[1772691547299,4.7183165,2119.5,2118.4,0.4995]
[1772691547596,0.001,2119.4,2118.4,0.4995]
[1772691547999,0.001,2119.4,2117.7,4.72203063]
[1772691548201,0.001,2119.1,2117.9,0.4995]
[1772691548570,0.001,2119.0,2117.9,0.4995]
[1772691548779,0.001,2118.8,2117.9,0.4995]
[1772691549201,0.001,2118.8,2118.0,0.4995]
[1772691549879,0.001,2118.8,2117.5,0.4995]
[1772691550687,0.001,2118.7,2117.6,0.4995]
[1772691550946,0.001,2118.5,2117.3,0.4995]
[1772691551480,0.001,2118.5,2117.1,0.4995]
[1772691552782,0.001,2118.5,2117.3,0.4995]
[1772691553784,1.18091315,2118.8,2117.3,0.4995]
[1772691554306,2.91891315,2118.8,2117.3,0.4995]
[1772691554493,1.17991315,2118.8,2117.3,0.5006]
[1772691554817,1.17991315,2118.8,2117.4,0.499]
[1772691555019,0.001,2119.1,2117.6,0.499]
[1772691556102,0.002,2118.9,2117.6,0.499]
[1772691556288,0.002,2118.8,2117.6,0.499]
[1772691556938,0.002,2118.8,2117.3,0.5001]
[1772691556939,0.002,2118.5,2117.3,0.5001]
[1772691557215,0.002,2118.3,2117.3,0.5001]
[1772691559218,1.18019166,2118.3,2117.4,0.499]
[1772691560925,1.18219166,2118.3,2117.4,0.499]
[1772691561229,1.18219166,2118.3,2117.5,1.67963754]
[1772691562330,1.18019166,2118.3,2117.5,0.499]
[1772691563208,4.72276665,2118.4,2117.5,0.499]
[1772691564217,0.002,2118.3,2117.5,0.499]
[1772691565134,4.72076665,2118.5,2117.7,1.18052604]
[1772691565135,6.46576665,2118.5,2117.7,1.18052604]
[1772691565333,2.92508024,2118.5,2117.8,0.499]
[1772691566010,1.18008024,2118.5,2117.8,0.499]
[1772691566232,1.17991315,2118.8,2117.8,0.499]
[1772691567016,2.92586815,2118.9,2117.8,0.499]
[1772691567209,2.92586815,2118.9,2117.9,1.18041456]
[1772691567433,1.746,2118.9,2118.0,0.499]
[1772691567632,2.92586147,2118.9,2118.0,0.499]
[1772691567841,0.001,2118.2,2118.0,0.499]
[1772691569337,1.17957912,2119.4,2118.2,0.4985]
[1772691570021,1.18257912,2119.4,2118.2,0.4985]
[1772691570355,0.003,2119.3,2118.2,0.4985]
[1772691570916,0.003,2119.2,2118.2,0.4985]
[1772691571342,1.17953763,2119.5,2118.4,0.4985]
[1772691572341,1.18252267,2119.6,2118.4,0.4985]
[1772691572650,1.17952267,2119.6,2118.4,0.4985]
[1772691573229,0.003,2119.6,2118.5,1.18008024]
[1772691573441,0.003,2119.6,2118.6,0.4985]
[1772691573616,4.71787129,2119.8,2118.6,0.4985]
[1772691574014,1.18234077,2119.9,2118.6,0.4985]
[1772691574325,0.003,2119.8,2118.6,0.4985]
[1772691575346,0.003,2119.8,2118.7,0.4985]
[1772691576349,3.18560557,2119.9,2118.7,0.4985]
[1772691576350,1.17934077,2119.9,2118.7,0.4985]
[1772691576541,1.18234077,2119.9,2118.7,0.4985]
[1772691576712,1.17934077,2119.9,2118.7,0.4985]
[1772691577112,2.93034077,2119.9,2118.7,0.4985]
[1772691577641,2.93034077,2119.9,2118.9,0.4985]
[1772691577842,2.93034077,2119.9,2118.9,0.54323762]
[1772691578029,1.4945089,2121.0,2119.0,0.4985]
[1772691578229,4.71520181,2120.9,2119.7,0.4985]
[1772691578436,1.17857816,2121.2,2119.7,0.4985]
[1772691579318,0.003,2121.6,2119.6,0.065536]
[1772691579319,1.17835595,2121.6,2119.9,0.4985]
[1772691579549,4.71342383,2121.7,2120.3,0.4985]
[1772691579726,2.55536341,2121.6,2120.3,0.4985]
[1772691580119,0.1671502,2122.2,2120.3,0.4985]
[1772691580447,0.1671502,2122.2,2120.2,1.17913404]
[1772691580448,2.55536341,2121.9,2120.5,0.4985]
[1772691580751,0.001,2120.7,2120.5,0.4985]
[1772691581064,2.55536341,2121.9,2120.7,0.4985]
[1772691581227,2.55236341,2121.9,2120.7,0.4985]
[1772691581562,1.17824488,2121.8,2120.9,0.4985]
[1772691582360,1.1782324,2121.9,2120.9,0.4985]
[1772691583240,1.17817105,2122.0,2120.9,0.4985]
[1772691583445,4.71240555,2122.1,2121.1,0.4985]
[1772691584240,0.003,2122.0,2121.1,0.4985]
[1772691584445,0.003,2122.0,2121.1,0.13866818]
[1772691584623,0.36283182,2121.8,2120.8,0.46051445]
[1772691585622,1.54113223,2121.7,2120.8,0.46051445]
[1772691586070,1.54113223,2121.7,2120.8,1.63930406]
[1772691586733,1.17830041,2121.7,2120.9,0.46051445]
[1772691587740,1.12830041,2121.7,2120.9,0.46051445]
[1772691588239,1.49113223,2121.7,2120.6,0.5030057]
[1772691588551,1.49113223,2121.7,2120.7,0.46051445]
[1772691589151,0.36283182,2121.6,2120.7,0.46051445]
[1772691589338,0.36283182,2121.6,2120.6,0.51293476]
[1772691589652,4.71320167,2121.8,2120.9,0.47044351]
[1772691589846,1.768,2121.7,2120.9,0.47044351]
[1772691591056,2.13083182,2121.7,2120.9,0.47044351]
[1772691591262,0.36283182,2121.6,2120.7,0.47044351]
[1772691591764,1.54124332,2121.5,2120.7,0.47044351]
[1772691592331,0.36283182,2121.4,2120.6,0.04249125]
[1772691593147,0.36283182,2121.4,2120.1,1.64960153]
[1772691593345,0.36283182,2121.4,2120.2,0.47044351]
[1772691594060,1.49886317,2121.3,2120.2,1.17910716]
[1772691594267,1.49886317,2121.3,2120.3,0.47144351]
[1772691594559,1.1785226,2121.3,2120.3,0.47144351]
[1772691594758,2.9485226,2121.3,2120.3,0.47144351]
[1772691596366,2.9485226,2121.3,2120.5,0.47044351]
[1772691596767,2.9485226,2121.3,2120.5,0.50162898]
[1772691597339,1.1785226,2121.3,2120.5,0.50162898]
[1772691597969,1.1785226,2121.3,2120.5,0.495204]
[1772691598270,4.71409041,2121.4,2120.6,1.17891162]
[1772691598466,5.03443098,2121.4,2120.5,1.67413107]
[1772691598671,4.71409041,2121.4,2120.6,0.47044351]
[1772691598842,6.48509041,2121.4,2120.6,0.47044351]
[1772691599169,4.71409041,2121.4,2120.6,0.47044351]
[1772691599467,1.17846705,2121.5,2120.6,0.47044351]
[1772691599468,6.48474032,2121.5,2120.6,0.47044351]
[1772691600245,6.48474032,2121.5,2120.7,1.64929954]
[1772691600551,0.32034057,2121.4,2120.7,1.64929954]
[1772691600771,0.32034057,2121.4,2120.5,0.02476049]
[1772691600942,0.32034057,2121.4,2120.6,0.47044351]
[1772691601264,4.71374032,2121.5,2120.6,0.47044351]
[1772691602269,1.49875207,2121.6,2120.7,1.64929954]
[1772691603073,1.49875207,2121.6,2120.8,0.47044351]
[1772691603257,0.32034057,2121.5,2120.6,0.47044351]
[1772691603775,0.32034057,2121.5,2120.5,0.02476049]
[1772691604266,1.17846705,2121.4,2120.5,0.02476049]
[1772691604451,0.32034057,2121.3,2120.5,0.02476049]
[1772691604990,0.32034057,2121.3,2120.3,0.001]
[1772691605560,0.32034057,2121.2,2120.3,0.001]
[1772691605759,0.32034057,2121.0,2120.3,0.001]
[1772691606560,0.32034057,2120.8,2120.3,0.001]
[1772691607052,0.32034057,2120.8,2119.8,1.64980005]
[1772691607881,0.32034057,2120.8,2120.7,0.001]
[1772691608045,0.32034057,2120.8,2119.8,1.64980005]
[1772691608262,1.17874487,2120.9,2120.5,0.001]
[1772691608461,6.94880664,2121.0,2120.5,0.001]
[1772691608462,4.71497948,2121.0,2120.5,0.001]
[1772691608800,6.48297948,2121.0,2120.5,0.001]
[1772691611669,0.002,2121.1,2120.5,0.47144351]
[1772691612789,0.002,2121.1,2120.7,0.47044351]
[1772691615184,0.002,2121.1,2120.8,1.64924396]
[1772691615703,0.002,2121.1,2120.8,0.47044351]
[1772691616206,0.002,2121.1,2120.5,0.47144351]
[1772691616360,0.002,2121.1,2120.7,0.47044351]
[1772691617286,0.002,2121.1,2120.8,1.17880045]
[1772691617466,0.002,2121.1,2120.9,0.47044351]
[1772691618089,0.002,2121.1,2120.7,0.47044351]
[1772691618759,0.002,2121.1,2120.5,0.47684536]
[1772691620575,0.002,2121.1,2120.6,0.47584536]
[1772691621388,0.002,2121.1,2120.8,0.47584536]
[1772691621966,0.002,2121.1,2120.9,1.65459023]
[1772691622162,0.002,2121.1,2120.9,0.47584536]
[1772691622970,4.71347764,2121.6,2120.9,0.47584536]
[1772691623181,1.17835595,2121.6,2120.9,0.47584536]
[1772691623895,1.17835595,2121.6,2121.0,1.17868929]
[1772691624108,1.49969652,2121.6,2120.7,1.65565321]
[1772691624320,1.49969652,2121.6,2120.8,0.47584536]
[1772691624604,0.32134057,2121.5,2120.8,0.47584536]
[1772691625595,1.17835595,2121.6,2120.8,0.47584536]
[1772691626406,1.17835595,2121.6,2120.9,1.17874487]
[1772691626568,0.32134057,2121.5,2120.8,1.65464167]
[1772691626999,0.32134057,2121.5,2120.8,1.65464554]
[1772691627178,1.17835595,2121.6,2120.9,0.47360111]
[1772691627497,2.93335595,2121.6,2120.8,0.47360111]
[1772691628410,2.93335595,2121.6,2121.0,0.47360111]
[1772691629102,2.93335595,2121.6,2120.7,4.71635313]
[1772691629103,0.32134057,2121.5,2120.7,0.47460111]
[1772691629487,2.93335595,2121.6,2120.7,0.47460111]
[1772691629488,1.17835595,2121.6,2120.8,0.47360111]
[1772691630690,1.17835595,2121.6,2121.0,0.47360111]
[1772691631571,1.49969652,2121.6,2120.8,1.65235725]
[1772691631773,0.32134057,2121.5,2120.8,0.47360111]
[1772691632813,0.32134057,2121.5,2120.9,0.47360111]
[1772691632814,1.17846705,2121.4,2120.9,0.47360111]
[1772691633974,1.17845305,2121.5,2120.9,0.47360111]
[1772691634573,0.002,2121.4,2120.9,0.47360111]
[1772691634786,0.002,2121.4,2121.0,1.17868929]
[1772691634984,0.002,2121.4,2121.1,0.47360111]
[1772691635189,0.002,2121.4,2120.9,0.47360111]
[1772691636007,0.002,2121.4,2120.7,0.47460111]
[1772691636510,0.002,2121.4,2120.7,1.65345022]
[1772691636812,0.002,2121.4,2120.8,0.47360111]
[1772691637878,0.002,2121.4,2120.8,1.65239811]
[1772691638592,0.002,2121.4,2120.8,0.47360111]
[1772691639123,0.002,2121.4,2120.8,1.65240071]
[1772691639628,0.002,2121.4,2120.8,0.47360111]
[1772691639808,0.002,2121.4,2120.8,1.65239129]
[1772691641127,0.002,2121.4,2120.9,0.47360111]
[1772691642435,0.002,2121.4,2121.0,0.47360111]
[1772691642596,0.002,2121.4,2120.8,0.47360111]
[1772691643195,0.32334057,2121.4,2120.8,0.47360111]
[1772691644520,0.002,2121.4,2120.8,0.47360111]
[1772691647022,0.32334057,2121.4,2120.8,0.47360111]
[1772691647725,0.002,2121.4,2120.9,0.47360111]
[1772691648703,0.002,2121.4,2121.0,0.001]
[1772691649492,0.32134057,2121.5,2121.0,0.001]
[1772691649692,0.32134057,2121.5,2121.0,0.47126568]
[1772691649693,1.49975207,2121.5,2121.0,0.47126568]
[1772691650090,3.23575207,2121.5,2121.0,0.47126568]
[1772691650700,1.1784115,2121.5,2121.0,0.47126568]
[1772691651895,0.32134057,2121.4,2121.0,0.001]
[1772691652628,2.05634057,2121.3,2121.0,0.001]
[1772691653001,1.49997429,2121.1,2121.0,0.001]
[1772691653326,1.49997429,2121.1,2120.7,0.001]
[1772691653524,4.71438486,2121.2,2120.7,1.65011811]
[1772691653525,1.17861454,2121.2,2120.7,1.65011811]
[1772691653727,6.7695485,2121.3,2120.7,1.65011811]
[1772691653728,1.17856715,2121.3,2120.8,0.47026568]
[1772691655329,1.17856715,2121.3,2120.9,0.47026568]
[1772691660434,0.32034057,2121.2,2120.7,0.47126568]
[1772691661014,0.32034057,2121.2,2120.7,0.001]
[1772691661248,0.32034057,2121.2,2120.7,0.47126568]
[1772691661828,1.49897429,2121.1,2120.7,0.47126568]
[1772691662347,1.49897429,2121.1,2120.9,0.001]
[1772691664630,1.17863372,2121.1,2120.9,0.001]
[1772691665218,1.738,2121.0,2120.9,0.001]
[1772691666044,5.03487548,2121.2,2120.9,0.001]
[1772691666045,0.32034057,2121.2,2120.9,0.001]
[1772691666244,1.738,2121.2,2120.9,0.47126568]
[1772691666548,1.18053103,2121.3,2120.9,0.47126568]
[1772691668537,1.741,2121.3,2121.0,0.47026568]
[1772691670045,0.002,2121.3,2121.0,0.47026568]
[1772691670625,0.32034057,2121.2,2120.9,0.001]
[1772691671277,0.32034057,2121.2,2120.5,0.001]
[1772691671994,0.46275177,2121.1,2120.5,0.001]
[1772691673150,0.46275177,2120.9,2120.5,0.001]
[1772691673348,0.46275177,2120.7,2120.5,0.001]
[1772691674734,0.46275177,2120.7,2120.2,0.001]
[1772691675454,3.43902281,2121.0,2120.2,0.47126568]
[1772691675455,0.46275177,2121.0,2120.2,0.47126568]
[1772691675765,1.743,2120.8,2120.2,0.47126568]
[1772691677445,1.743,2120.8,2120.4,0.47126568]
[1772691677663,0.002,2120.9,2120.4,0.47126568]
[1772691679484,0.002,2120.9,2120.6,0.47935568]
[1772691679664,0.002,2121.1,2120.6,0.47935568]
[1772691682255,0.002,2121.1,2120.7,1.17885603]
[1772691682559,0.002,2121.1,2120.8,0.47935568]
[1772691684049,2.92234574,2121.7,2120.8,0.47935568]
[1772691684260,1.17834574,2121.7,2120.8,0.47935568]
[1772691684655,5.18972514,2121.9,2121.0,0.47935568]
[1772691684856,4.71262368,2122.0,2121.0,0.47935568]
[1772691685471,0.47686662,2121.9,2121.0,0.47935568]
[1772691686665,0.49891902,2121.7,2121.0,0.47935568]
[1772691686871,0.49891902,2121.7,2120.8,1.64084322]
[1772691687269,0.49891902,2121.7,2120.8,1.17876143]
[1772691687465,0.49891902,2121.7,2120.9,0.46208179]
[1772691688884,0.49891902,2121.5,2120.9,1.6408109]
[1772691689579,0.49891902,2121.5,2120.9,0.46208179]
[1772691689773,0.49891902,2121.5,2120.9,1.64081365]
[1772691690579,0.49891902,2121.5,2120.9,0.46208179]
[1772691690752,1.67738607,2121.4,2120.9,0.46208179]
[1772691690952,1.67738607,2121.4,2120.9,1.64082304]
[1772691691384,1.17835595,2121.6,2121.0,0.46208179]
[1772691692469,0.002,2121.3,2121.0,0.46208179]
[1772691693086,0.002,2121.3,2121.1,1.17863372]
[1772691693480,0.002,2121.3,2121.1,1.64071551]
[1772691693679,0.002,2121.3,2121.1,0.46208179]
[1772691694517,1.6771639,2121.8,2121.1,0.46208179]
[1772691694659,0.49891902,2121.7,2121.1,0.46208179]
[1772691695362,0.49891902,2121.5,2120.9,0.46208179]
[1772691695571,0.49891902,2121.5,2120.9,1.6408187]
[1772691696469,0.49891902,2121.5,2121.0,0.46208179]
[1772691697483,1.17845318,2121.5,2121.1,0.46208179]
[1772691697884,1.17840004,2121.6,2121.1,0.46208179]
[1772691698194,1.67726253,2121.7,2121.1,0.46208179]
[1772691698866,0.49891902,2121.6,2121.1,0.46208179]
[1772691699093,4.71307345,2121.8,2121.1,0.46208179]
[1772691699094,0.49891902,2121.8,2121.1,0.46208179]
[1772691699594,1.17830041,2121.7,2121.2,0.46208179]
[1772691700271,1.67720792,2121.8,2121.2,0.46208179]
[1772691700866,0.49891902,2121.7,2121.2,0.46208179]